bitfinex/quotes_SOLUSD_20250717
["timestamp","ask_amount","ask_price","bid_price","bid_amount"]
[1752740417926,0.68,173.34,173.31,5.42932178]
[1752740418331,0.68,173.34,173.3,5.42932178]
[1752740418526,6.4490848,173.34,173.3,5.42932178]
[1752740418916,6.4490848,173.34,173.3,6.10932178]
[1752740419242,0.68,173.34,173.3,6.10932178]
[1752740420744,11.19806914,173.35,173.31,0.68]
[1752740420929,11.19806914,173.35,173.34,0.1]
[1752740421247,11.87806914,173.35,173.34,0.1]
[1752740421825,6.44874736,173.35,173.34,0.1]
[1752740423850,148.16,173.36,173.34,0.1]
[1752740424453,0.06,173.36,173.34,0.1]
[1752740425928,0.06,173.36,173.34,6.20932178]
[1752740426282,0.06,173.36,173.34,6.10932178]
[1752740426756,0.06,173.36,173.35,6.10932178]
[1752740427053,0.06,173.36,173.34,5.42932178]
[1752740427973,0.68,173.35,173.31,6.10932178]
[1752740428537,5.42932178,173.34,173.31,0.68]
[1752740428839,6.10932178,173.35,173.31,0.68]
[1752740429574,6.10932178,173.35,173.31,6.44996979]
[1752740429870,5.48932178,173.36,173.32,0.68]
[1752740430034,6.16932178,173.36,173.32,0.68]
[1752740430233,6.16932178,173.36,173.34,0.1]
[1752740431246,6.10932178,173.35,173.34,0.1]
[1752740432558,6.20932178,173.36,173.34,0.1]
[1752740433858,11.97775551,173.36,173.34,0.1]
[1752740434159,6.14932178,173.35,173.34,0.1]
[1752740434759,5.42932178,173.35,173.32,0.67]
[1752740434950,11.19808125,173.35,173.3,37.89955766]
[1752740435160,5.42932178,173.33,173.3,26.7]
[1752740435460,6.14932178,173.33,173.3,26.7]
[1752740435669,6.14932178,173.33,173.3,26.03]
[1752740438347,5.42932178,173.31,173.3,0.03]
[1752740438781,0.72,173.31,173.3,0.03]
[1752740439070,6.14932178,173.31,173.3,0.03]
[1752740440477,5.42932178,173.31,173.3,0.03]
[1752740441347,6.14932178,173.31,173.3,0.03]
[1752740441561,11.91932928,173.31,173.3,0.03]
[1752740443967,28.70401325,173.31,173.3,0.03]
[1752740444174,58.26401325,173.31,173.3,0.03]
[1752740444773,63.69333503,173.31,173.3,0.03]
[1752740445153,24.56888397,173.3,173.29,0.03]
[1752740445356,41.91786798,173.3,173.29,0.03]
[1752740451571,57.5643462,173.3,173.29,0.03]
[1752740451774,40.77966223,173.3,173.29,0.03]
[1752740452660,41.49966223,173.3,173.29,0.03]
[1752740454773,11.91966223,173.3,173.29,0.03]
[1752740454959,41.47966223,173.3,173.29,0.03]
[1752740455162,11.19966223,173.3,173.29,0.03]
[1752740455374,40.75966223,173.3,173.29,0.03]
[1752740455875,11.19966223,173.3,173.29,0.03]
[1752740456079,40.75966223,173.3,173.29,0.03]
[1752740456673,41.47966223,173.3,173.29,0.03]
[1752740457576,11.91966223,173.3,173.29,0.03]
[1752740457780,41.47966223,173.3,173.29,0.03]
[1752740457973,35.33034045,173.3,173.29,0.03]
[1752740458470,40.75966223,173.3,173.29,0.03]
[1752740458884,40.75966223,173.3,173.29,0.7]
[1752740459278,40.75966223,173.3,173.29,0.03]
[1752740459585,11.19966223,173.3,173.29,0.03]
[1752740460884,29.56,173.31,173.29,0.03]
[1752740461067,5.42932178,173.34,173.29,6.12932178]
[1752740461264,11.19799786,173.35,173.3,6.09932178]
[1752740461587,40.75799786,173.35,173.31,0.69]
[1752740461965,35.32867608,173.35,173.31,0.69]
[1752740462184,40.75799786,173.35,173.31,6.11932178]
[1752740462380,0.06,173.36,173.32,0.69]
[1752740462696,0.06,173.36,173.32,6.11932178]
[1752740462873,0.06,173.36,173.33,0.69]
[1752740463074,0.06,173.36,173.34,0.69]
[1752740463272,11.25772441,173.36,173.34,0.69]
[1752740463472,11.25772441,173.36,173.33,0.69]
[1752740464289,5.48932178,173.36,173.33,0.69]
[1752740464464,11.25768604,173.36,173.33,0.69]
[1752740464669,11.92768604,173.36,173.33,0.69]
[1752740465496,11.25768604,173.36,173.33,0.69]
[1752740466279,5.42932178,173.35,173.31,0.69]
[1752740466464,6.09932178,173.35,173.32,0.69]
[1752740466880,5.42932178,173.35,173.32,0.69]
[1752740467285,5.42932178,173.34,173.32,0.69]
[1752740468088,5.42932178,173.35,173.32,0.69]
[1752740468280,5.42932178,173.35,173.29,31.80063416]
[1752740468487,5.42932178,173.33,173.3,0.69]
[1752740468769,5.42932178,173.32,173.29,26.03]
[1752740468965,5.42932178,173.31,173.29,26.03]
[1752740469169,6.09932178,173.31,173.29,26.03]
[1752740469696,5.42932178,173.3,173.29,26.03]
[1752740470792,11.86966223,173.3,173.29,0.03]
[1752740474594,41.42966223,173.3,173.29,0.03]
[1752740475286,11.86966223,173.3,173.29,0.03]
[1752740475484,41.42966223,173.3,173.29,0.03]
[1752740476989,40.75966223,173.3,173.29,0.03]
[1752740477379,41.42966223,173.3,173.29,0.03]
[1752740477591,11.86966223,173.3,173.29,0.03]
[1752740477798,41.42966223,173.3,173.29,0.03]
[1752740484804,16.78468397,173.29,173.27,0.03]
[1752740485109,51.77400575,173.28,173.27,0.03]
[1752740485276,52.44400575,173.28,173.27,1e-08]
[1752740485482,16.78468397,173.26,173.23,0.03]
[1752740485692,5.42932178,173.24,173.23,0.03]
[1752740485896,34.98932178,173.24,173.23,0.03]
[1752740486098,35.65932178,173.24,173.23,0.03]
[1752740487491,41.43166073,173.24,173.23,0.03]
[1752740488407,58.2163447,173.24,173.23,0.03]
[1752740488999,61.0766785,173.24,173.23,0.03]
[1752740489394,16.78468397,173.21,173.13,0.69]
[1752740489601,5.42932178,173.16,173.13,0.69]
[1752740489910,34.98932178,173.17,173.13,0.69]
[1752740490406,34.98932178,173.17,173.13,6.46599632]
[1752740490606,5.42932178,173.19,173.14,6.11932178]
[1752740490806,29.56,173.19,173.15,0.69]
[1752740491105,148.1,173.2,173.15,12.34442178]
[1752740491321,40.7627209,173.21,173.16,0.69]
[1752740491481,35.33339912,173.21,173.16,0.69]
[1752740491678,5.42932178,173.2,173.16,0.69]
[1752740492208,34.98932178,173.21,173.16,6.46493154]
[1752740492417,34.98932178,173.21,173.17,0.71]
[1752740493896,5.42932178,173.21,173.17,0.71]
[1752740494816,5.77303474,173.22,173.17,6.48463661]
[1752740495014,35.33303474,173.22,173.18,0.71]
[1752740495319,5.42932178,173.21,173.18,0.71]
[1752740495925,11.20270382,173.21,173.18,0.71]
[1752740496114,5.42932178,173.21,173.18,0.71]
[1752740496413,5.42932178,173.21,173.15,12.00029851]
[1752740496593,6.09932178,173.2,173.16,0.71]
[1752740497507,6.09932178,173.2,173.17,0.71]
[1752740498496,6.09932178,173.2,173.17,0.74]
[1752740498992,11.87307171,173.2,173.17,0.74]
[1752740500324,29.56,173.22,173.17,0.74]
[1752740500325,5.77344487,173.21,173.17,0.74]
[1752740500522,5.42932178,173.21,173.18,0.71]
[1752740500721,5.42932178,173.21,173.19,0.71]
[1752740501108,29.56,173.22,173.19,0.71]
[1752740501426,14.43023796,173.25,173.19,6.13932178]
[1752740501427,40.76174469,173.24,173.19,6.13932178]
[1752740501622,34.98932178,173.24,173.2,0.71]
[1752740502106,34.98932178,173.24,173.2,6.48344843]
[1752740502304,34.98932178,173.24,173.21,0.71]
[1752740503524,29.56,173.24,173.21,0.71]
[1752740503698,34.98932178,173.24,173.21,0.71]
[1752740504022,29.56,173.24,173.21,0.71]
[1752740504204,6.09932178,173.25,173.21,0.71]
[1752740504619,0.67,173.25,173.22,0.71]
[1752740504824,34.98932178,173.26,173.22,0.71]
[1752740505124,29.56,173.26,173.23,0.71]
[1752740505731,0.67,173.25,173.21,6.13932178]
[1752740505929,34.98932178,173.26,173.22,0.71]
[1752740506332,35.65932178,173.26,173.22,0.71]
[1752740507112,35.65932178,173.26,173.23,0.71]
[1752740507622,29.56,173.26,173.23,0.71]
[1752740507941,29.56,173.28,173.24,5.42932178]
[1752740508135,29.56,173.28,173.25,0.71]
[1752740508614,5.48932178,173.3,173.26,0.71]
[1752740508807,0.06,173.3,173.28,31.42932178]
[1752740509006,0.06,173.3,173.29,6.13932178]
[1752740510434,0.06,173.3,173.29,11.90999521]
[1752740513313,0.06,173.3,173.29,6.48067343]
[1752740513512,0.06,173.3,173.29,11.90999521]
[1752740515622,0.06,173.3,173.29,6.48067343]
[1752740515825,0.06,173.3,173.29,11.90999521]
[1752740516218,0.06,173.3,173.29,6.48067343]
[1752740516436,0.06,173.3,173.29,11.90999521]
[1752740520839,0.06,173.3,173.29,6.48067343]
[1752740521152,0.06,173.3,173.28,40.76028776]
[1752740521444,0.06,173.3,173.28,37.20023626]
[1752740521648,0.06,173.3,173.29,6.09932178]
[1752740522727,0.06,173.3,173.29,0.67]
[1752740522932,0.06,173.3,173.28,79.1025865]
[1752740523877,0.06,173.3,173.28,61.31091448]
[1752740524046,0.06,173.3,173.28,79.7725865]
[1752740524255,0.06,173.3,173.29,17.79167202]
[1752740524445,0.06,173.3,173.28,61.98091448]
[1752740524663,0.06,173.3,173.29,17.79167202]
[1752740524828,0.06,173.3,173.28,61.31091448]
[1752740525133,0.77,173.3,173.28,26.0]
[1752740525534,0.71,173.29,173.28,26.0]
[1752740525942,24.27239039,173.29,173.23,47.33167202]
[1752740526129,18.50167202,173.28,173.26,26.0]
[1752740528362,18.50167202,173.28,173.23,61.98266439]
[1752740528537,23.56275851,173.28,173.23,79.77433641]
[1752740528738,18.50167202,173.27,173.23,55.54]
[1752740529045,0.06,173.3,173.22,0.03]
[1752740529046,17.79167202,173.25,173.22,0.03]
[1752740529250,0.71,173.24,173.22,0.03]
[1752740530161,18.50167202,173.26,173.22,0.03]
[1752740530531,18.50167202,173.26,173.22,0.7]
[1752740531277,18.50167202,173.26,173.22,6.47296625]
[1752740531836,0.71,173.25,173.22,0.03]
[1752740532333,0.71,173.24,173.22,0.03]
[1752740532551,18.50167202,173.24,173.22,0.03]
[1752740532753,0.71,173.24,173.22,0.03]
[1752740534149,0.71,173.23,173.22,0.03]
[1752740534454,18.50167202,173.23,173.22,0.03]
[1752740534662,0.71,173.23,173.22,0.03]
[1752740535032,17.79167202,173.24,173.22,0.03]
[1752740535432,18.50167202,173.24,173.22,0.03]
[1752740537445,23.56413466,173.24,173.22,0.03]
[1752740537645,0.71,173.23,173.22,0.03]
[1752740537962,18.50167202,173.24,173.22,0.03]
[1752740539343,0.71,173.23,173.22,0.03]
[1752740541160,17.79167202,173.24,173.22,0.03]
[1752740541448,18.50167202,173.24,173.22,0.03]
[1752740542267,18.50167202,173.26,173.22,0.03]
[1752740542570,17.79167202,173.25,173.22,0.03]
[1752740542747,18.50167202,173.25,173.22,0.03]
[1752740543448,0.71,173.24,173.22,0.03]
[1752740544455,5.77175396,173.26,173.22,0.03]
[1752740544670,17.79167202,173.25,173.22,0.7]
[1752740544844,18.50167202,173.26,173.22,0.7]
[1752740545567,0.71,173.25,173.22,0.7]
[1752740546069,17.79167202,173.23,173.22,0.03]
[1752740546763,18.50167202,173.23,173.22,0.03]
[1752740546960,0.71,173.23,173.22,0.03]
[1752740547160,0.71,173.28,173.24,26.0]
[1752740547359,0.77,173.3,173.26,17.79167202]
[1752740547555,0.77,173.3,173.27,17.79167202]
[1752740547954,0.06,173.3,173.28,17.79167202]
[1752740548175,0.06,173.3,173.27,18.46167202]
[1752740548361,0.06,173.3,173.26,17.79167202]
[1752740548667,17.79167202,173.27,173.24,26.0]
[1752740548972,18.50167202,173.26,173.24,26.0]
[1752740549351,6.48106897,173.28,173.24,26.0]
[1752740549659,18.50167202,173.27,173.24,26.0]
[1752740549845,0.71,173.27,173.24,26.0]
[1752740550044,5.77076179,173.29,173.24,26.0]
[1752740550045,17.79167202,173.28,173.24,32.44227706]
[1752740550275,18.50167202,173.28,173.24,32.44227706]
[1752740550571,0.71,173.28,173.24,50.23394908]
[1752740550750,0.71,173.28,173.25,0.67]
[1752740550949,0.71,173.28,173.24,49.56394908]
[1752740551148,0.71,173.28,173.25,17.79167202]
[1752740551352,0.71,173.28,173.25,18.51167202]
[1752740551768,0.71,173.28,173.24,49.56394908]
[1752740551951,0.69,173.27,173.24,31.77227706]
[1752740552149,0.69,173.27,173.24,49.56394908]
[1752740552575,0.69,173.27,173.24,31.77227706]
[1752740552775,0.69,173.27,173.24,26.0]
[1752740552950,0.69,173.26,173.24,26.0]
[1752740553154,0.69,173.26,173.22,0.03]
[1752740553155,17.79167202,173.25,173.22,0.03]
[1752740553380,17.79167202,173.24,173.22,0.03]
[1752740553555,18.48167202,173.24,173.22,0.03]
[1752740553755,0.69,173.23,173.22,0.03]
[1752740553969,17.79167202,173.25,173.22,0.03]
[1752740554276,24.25337895,173.26,173.22,0.03]
[1752740554453,0.69,173.25,173.22,0.03]
[1752740554867,0.44,173.25,173.22,0.03]
[1752740556850,18.23167202,173.25,173.22,0.03]
[1752740557051,0.69,173.24,173.22,0.03]
[1752740557650,0.69,173.23,173.22,26.03]
[1752740558055,18.48167202,173.25,173.22,0.03]
[1752740558256,0.69,173.24,173.22,0.03]
[1752740558670,18.48167202,173.23,173.22,0.03]
[1752740560371,17.79167202,173.26,173.22,0.03]
[1752740560588,0.69,173.25,173.22,0.03]
[1752740562083,0.69,173.24,173.22,0.03]
[1752740563083,23.56392089,173.25,173.22,0.03]
[1752740563284,0.69,173.23,173.22,0.03]
[1752740564658,23.5634465,173.26,173.22,0.75]
[1752740564986,0.69,173.25,173.22,0.03]
[1752740565282,24.25380477,173.25,173.22,0.03]
[1752740565482,0.69,173.24,173.22,0.03]
[1752740566482,0.69,173.23,173.22,0.03]
[1752740566879,18.48167202,173.23,173.22,0.03]
[1752740567790,48.02167202,173.23,173.22,0.03]
[1752740568084,66.35265599,173.23,173.22,0.03]
[1752740568287,72.12532815,173.23,173.22,0.03]
[1752740570084,37.54897216,173.23,173.22,0.03]
[1752740570281,72.12532815,173.23,173.22,0.03]
[1752740572384,86.55700857,173.23,173.17,0.03]
[1752740572562,17.79167202,173.18,173.17,0.03]
[1752740572769,47.33167202,173.18,173.17,0.03]
[1752740572970,48.02167202,173.18,173.17,0.03]
[1752740574190,53.79601085,173.18,173.17,0.03]
[1752740581200,36.00433883,173.18,173.17,0.03]
[1752740581400,53.79601085,173.18,173.17,0.03]
[1752740581783,24.25601085,173.18,173.17,0.03]
[1752740581984,53.79601085,173.18,173.17,0.03]
[1752740589914,24.25601085,173.18,173.17,0.03]
[1752740590109,171.66511224,173.21,173.17,0.74]
[1752740590411,47.33167202,173.2,173.17,0.74]
[1752740590910,29.54,173.2,173.18,0.71]
[1752740591102,47.33167202,173.2,173.18,0.71]
[1752740591302,47.33167202,173.2,173.17,0.03]
[1752740591303,165.89167202,173.21,173.19,0.71]
[1752740591513,148.1,173.21,173.18,17.79167202]
[1752740591685,177.64,173.21,173.2,0.71]
[1752740591890,148.1,173.21,173.2,0.71]
[1752740592501,148.1,173.21,173.18,24.27598058]
[1752740592691,148.1,173.21,173.19,0.71]
[1752740593018,148.1,173.21,173.2,0.71]
[1752740593811,29.6,173.22,173.2,0.71]
[1752740597512,29.6,173.22,173.21,0.71]
[1752740599090,29.6,173.22,173.19,0.71]
[1752740599293,29.6,173.22,173.2,0.71]
[1752740600194,53.16469755,173.22,173.17,32.51458263]
[1752740600399,53.86469755,173.22,173.19,26.0]
[1752740600904,36.07302553,173.22,173.19,26.71]
[1752740601104,53.86469755,173.22,173.19,26.71]
[1752740601994,53.16469755,173.22,173.19,26.71]
[1752740602234,47.39167202,173.22,173.19,26.0]
[1752740602517,47.39167202,173.22,173.2,0.71]
[1752740602895,29.6,173.22,173.2,0.71]
[1752740603094,29.6,173.22,173.19,26.0]
[1752740603095,29.6,173.22,173.21,0.71]
[1752740603521,29.6,173.22,173.19,26.71]
[1752740603707,53.16471983,173.22,173.19,26.71]
[1752740603908,53.16471983,173.22,173.17,0.74]
[1752740603909,17.79167202,173.2,173.17,0.74]
[1752740604106,17.79167202,173.18,173.17,0.03]
[1752740604303,47.33167202,173.18,173.17,0.03]
[1752740604622,48.03167202,173.18,173.17,0.03]
[1752740605143,35.69650974,173.18,173.17,0.03]
[1752740605629,58.25553254,173.18,173.17,0.03]
[1752740610007,52.7990228,173.18,173.17,0.03]
[1752740610235,58.25553254,173.18,173.17,0.03]
[1752740610445,28.71553254,173.18,173.17,0.03]
[1752740610622,58.25553254,173.18,173.17,0.03]
[1752740612544,57.55553254,173.18,173.17,0.03]
[1752740613648,28.01553254,173.18,173.17,0.03]
[1752740613854,40.77084857,173.18,173.17,0.03]
[1752740614736,41.43084857,173.18,173.17,0.03]
[1752740615527,11.89084857,173.18,173.17,0.03]
[1752740615727,41.43084857,173.18,173.17,0.03]
[1752740618428,11.89084857,173.18,173.17,0.03]
[1752740618653,41.43084857,173.18,173.17,0.03]
[1752740620253,35.31433883,173.18,173.17,0.03]
[1752740620459,40.77084857,173.18,173.17,0.03]
[1752740621239,41.43084857,173.18,173.17,0.03]
[1752740622056,40.77084857,173.18,173.17,0.03]
[1752740622558,41.43084857,173.18,173.17,0.03]
[1752740626049,5.45650974,173.19,173.17,0.71]
[1752740626250,29.54,173.18,173.17,0.03]
[1752740626451,34.99650974,173.18,173.17,0.03]
[1752740626658,35.65650974,173.18,173.17,0.03]
[1752740626960,40.77084857,173.18,173.17,0.03]
[1752740629442,35.31433883,173.18,173.17,0.03]
[1752740629741,40.77084857,173.18,173.17,0.03]
[1752740630266,35.31433883,173.18,173.17,0.03]
[1752740630471,40.77084857,173.18,173.17,0.03]
[1752740632054,11.23084857,173.18,173.17,0.03]
[1752740632245,40.77084857,173.18,173.17,0.03]
[1752740632445,11.23084857,173.18,173.17,0.03]
[1752740632743,40.77084857,173.18,173.17,0.03]
[1752740633370,40.77084857,173.18,173.17,0.71]
[1752740633556,35.31433883,173.18,173.17,0.71]
[1752740633754,29.54,173.18,173.17,0.71]
[1752740634066,11.23025774,173.2,173.17,0.71]
[1752740634258,29.54,173.19,173.17,0.71]
[1752740634868,34.99650974,173.19,173.18,0.68]
[1752740635072,40.77051516,173.19,173.18,0.68]
[1752740635253,40.77051516,173.19,173.17,0.03]
[1752740635458,41.43051516,173.19,173.17,0.03]
[1752740636165,5.45650974,173.18,173.17,0.03]
[1752740637279,11.23084857,173.18,173.17,0.03]
[1752740637687,11.23084857,173.18,173.17,0.71]
[1752740637857,5.45650974,173.18,173.17,0.71]
[1752740638175,11.23084857,173.18,173.17,0.71]
[1752740638361,5.77433883,173.18,173.17,0.71]
[1752740638562,5.45650974,173.18,173.17,0.71]
[1752740639251,34.97650974,173.18,173.17,0.71]
[1752740640381,29.52,173.18,173.17,0.71]
[1752740640883,148.1,173.21,173.17,6.16650974]
[1752740641178,0.06,173.22,173.21,1.528]
[1752740641365,0.06,173.22,173.21,6.98450974]
[1752740641575,148.1,173.27,173.21,7.65450974]
[1752740641769,0.06,173.28,173.21,7.65450974]
[1752740641770,0.06,173.28,173.26,5.45650974]
[1752740642159,0.06,173.28,173.27,0.67]
[1752740642669,0.06,173.28,173.27,6.12650974]
[1752740643255,0.06,173.28,173.23,55.52]
[1752740643586,5.45650974,173.25,173.24,0.67]
[1752740644571,11.22829387,173.26,173.24,0.67]
[1752740644777,11.22829387,173.26,173.23,26.0]
[1752740645164,11.22829387,173.26,173.23,26.67]
[1752740645487,11.93829387,173.26,173.23,26.67]
[1752740645661,5.77178413,173.26,173.23,26.67]
[1752740645855,35.31178413,173.26,173.24,0.67]
[1752740646049,35.31178413,173.26,173.19,6.03458317]
[1752740646050,5.77178413,173.26,173.19,6.03458317]
[1752740646252,29.56,173.26,173.24,0.67]
[1752740646577,29.56,173.26,173.22,26.67]
[1752740646578,5.77200577,173.25,173.22,26.67]
[1752740646781,5.77200577,173.25,173.23,0.67]
[1752740647874,5.77200577,173.25,173.22,26.0]
[1752740648078,5.77200577,173.25,173.22,26.67]
[1752740648575,11.22851551,173.25,173.22,26.67]
[1752740648973,5.77200577,173.25,173.22,26.67]
[1752740651778,5.77200577,173.25,173.23,0.67]
[1752740651975,5.83200577,173.25,173.23,0.67]
[1752740652159,5.83200577,173.25,173.24,0.67]
[1752740652160,0.06,173.25,173.24,0.67]
[1752740652365,0.06,173.25,173.24,6.12650974]
[1752740655253,0.06,173.25,173.24,0.67]
[1752740655456,0.06,173.25,173.24,6.12650974]
[1752740656079,0.06,173.25,173.24,0.67]
[1752740657878,0.06,173.25,173.22,61.64650974]
[1752740658079,0.06,173.25,173.22,60.97650974]
[1752740658286,0.06,173.25,173.23,0.67]
[1752740658784,0.06,173.25,173.22,56.19]
[1752740659375,0.06,173.25,173.22,26.67]
[1752740659570,0.06,173.25,173.23,0.67]
[1752740660478,0.06,173.25,173.24,6.12650974]
[1752740660678,0.06,173.25,173.24,0.67]
[1752740662889,0.06,173.25,173.24,32.12650974]
[1752740663599,0.06,173.25,173.24,26.0]
[1752740663785,0.06,173.25,173.22,30.19]
[1752740664090,0.06,173.25,173.22,6.12650974]
[1752740664386,0.06,173.25,173.23,0.67]
[1752740664778,0.06,173.25,173.23,26.0]
[1752740664982,0.06,173.25,173.24,6.12650974]
[1752740665366,0.06,173.25,173.24,32.12650974]
[1752740668284,0.06,173.25,173.24,37.89884869]
[1752740669092,0.06,173.25,173.24,44.48104869]
[1752740669297,0.06,173.25,173.24,35.26573266]
[1752740669672,0.024697,173.25,173.24,35.26573266]
[1752740669869,0.06,173.28,173.27,26.0]
[1752740670084,0.06,173.28,173.27,61.25650974]
[1752740670469,0.06,173.28,173.27,61.92650974]
[1752740670799,0.06,173.28,173.27,84.48253323]
[1752740670974,0.06,173.29,173.27,120.60407692]
[1752740671171,0.06,173.29,173.28,11.58301948]
[1752740671477,0.06,173.3,173.28,56.86770345]
[1752740671684,0.06,173.3,173.29,58.76477079]
[1752740671998,0.06,173.34,173.33,42.78468397]
[1752740672205,0.06,173.36,173.34,1.6178]
[1752740672500,0.06,173.37,173.36,16.78468397]
[1752740672683,0.06,173.38,173.36,22.24119371]
[1752740672998,0.06,173.38,173.37,65.19760538]
[1752740673180,0.06,173.38,173.37,93.69760538]
[1752740673599,0.06,173.4,173.38,16.78468397]
[1752740673796,0.06,173.4,173.38,22.93119371]
[1752740674279,0.06,173.45,173.38,28.38770345]
[1752740674479,0.06,173.45,173.4,53.69770345]
[1752740674687,0.06,173.45,173.42,22.24119371]
[1752740674889,0.06,173.45,173.42,28.0075413]
[1752740675196,0.06,173.45,173.42,28.6975413]
[1752740676494,0.06,173.45,173.42,58.6975413]
[1752740677002,0.2,173.46,173.45,23.35578397]
[1752740677193,0.06,173.48,173.47,42.78468397]
[1752740677389,0.06,173.48,173.47,78.02119371]
[1752740677586,0.06,173.5,173.48,16.78468397]
[1752740677899,0.06,173.5,173.49,35.23650974]
[1752740678075,0.06,173.5,173.49,35.92650974]
[1752740678276,0.06,173.5,173.49,52.71119371]
[1752740678475,0.06,173.5,173.49,58.47521469]
[1752740679406,0.06,173.5,173.49,32.14650974]
[1752740679702,0.06,173.5,173.49,67.67053072]
[1752740683007,0.06,173.5,173.49,61.21650974]
[1752740683421,0.77,173.5,173.47,5.45650974]
[1752740683715,6.16650974,173.49,173.45,29.78]
[1752740684016,6.16650974,173.48,173.43,5.45650974]
[1752740684188,5.45650974,173.48,173.44,59.78]
[1752740684388,6.16650974,173.47,173.44,29.78]
[1752740684721,5.45650974,173.45,173.37,0.69]
[1752740684889,12.17910974,173.5,173.38,29.78]
[1752740684890,5.7660151,173.43,173.38,29.78]
[1752740685089,0.71,173.42,173.39,5.45650974]
[1752740685319,5.45650974,173.42,173.38,29.78]
[1752740685519,0.71,173.41,173.38,29.78]
[1752740685688,0.71,173.4,173.37,29.78]
[1752740686013,5.45650974,173.41,173.39,26.0]
[1752740686604,6.47701268,173.4,173.39,26.0]
[1752740686902,11.93352242,173.4,173.33,0.69]
[1752740687103,14.45894872,173.4,173.35,7.98193604]
[1752740687320,0.71,173.39,173.36,29.78]
[1752740687620,0.71,173.39,173.36,37.76193604]
[1752740687814,6.47671175,173.41,173.37,7.98193604]
[1752740688017,5.76671175,173.41,173.37,7.98193604]
[1752740688315,5.76643753,173.42,173.38,37.76193604]
[1752740688514,13.74803647,173.43,173.38,38.45193604]
[1752740688716,13.74803647,173.43,173.38,37.76193604]
[1752740688893,0.71,173.42,173.38,37.76193604]
[1752740689096,0.71,173.41,173.38,37.76193604]
[1752740689927,0.71,173.41,173.38,29.78]
[1752740691696,5.76647908,173.42,173.38,37.76193604]
[1752740691900,6.47647908,173.42,173.38,38.45193604]
[1752740693216,14.45841512,173.42,173.38,38.45193604]
[1752740693799,14.45841512,173.42,173.38,30.47]
[1752740694045,14.45841512,173.42,173.38,38.45193604]
[1752740695229,14.45841512,173.42,173.38,30.47]
[1752740695903,14.45841512,173.42,173.38,38.45193604]
[1752740697033,14.45841512,173.42,173.38,30.47]
[1752740697416,8.69193604,173.41,173.38,29.78]
[1752740697614,7.98193604,173.39,173.35,26.0]
[1752740697808,7.98193604,173.37,173.35,26.0]
[1752740698010,8.69193604,173.37,173.35,26.0]
[1752740698225,8.69193604,173.36,173.34,0.53268964]
[1752740698812,0.71,173.36,173.34,0.53268964]
[1752740699132,7.98193604,173.37,173.34,0.53268964]
[1752740699341,6.47834333,173.36,173.34,0.53268964]
[1752740699709,14.46027937,173.36,173.34,0.53268964]
[1752740700433,8.69193604,173.35,173.34,0.53268964]
[1752740700823,0.71,173.35,173.34,26.53268964]
[1752740701024,0.71,173.35,173.34,26.0]
[1752740701233,13.75027937,173.36,173.34,26.0]
[1752740701433,14.47027937,173.36,173.34,26.0]
[1752740702734,0.72,173.35,173.34,26.0]
[1752740702925,8.70193604,173.35,173.32,29.76]
[1752740703543,0.72,173.35,173.32,29.76]
[1752740704228,6.48868004,173.35,173.32,29.76]